[Event "*** Titled Tuesday Blitz"]
[Site "Chess.com"]
[Date "2020.05.26"]
[Round "6"]
[White "relaxx87"]
[Black "Thipsay"]
[Result "1-0"]
[WhiteElo "2675"]
[BlackElo "2462"]
[TimeControl "180+1"]
[EndTime "11:07:47 PDT"]
[Termination "relaxx87 won on time"]

1. e4 {[%clk 0:03:00.9]} 1... e5 {[%clk 0:02:59.2]} 2. Nf3 {[%clk 0:03:00.2]}
2... Nc6 {[%clk 0:02:59.2]} 3. Bb5 {[%clk 0:02:59.5]} 3... a6 {[%clk 0:02:59.3]}
4. Ba4 {[%clk 0:02:59.4]} 4... Nf6 {[%clk 0:02:59.3]} 5. O-O {[%clk 0:02:58.7]}
5... Be7 {[%clk 0:02:59.3]} 6. Re1 {[%clk 0:02:53.8]} 6... b5 {[%clk 0:02:59.3]}
7. Bb3 {[%clk 0:02:50.6]} 7... d6 {[%clk 0:02:59.8]} 8. c3 {[%clk 0:02:50.6]}
8... Na5 {[%clk 0:02:58.4]} 9. Bc2 {[%clk 0:02:49.1]} 9... c5 {[%clk 0:02:58.6]}
10. d4 {[%clk 0:02:46.7]} 10... Qc7 {[%clk 0:02:58.6]} 11. a4 {[%clk 0:02:42.3]}
11... b4 {[%clk 0:02:43.3]} 12. cxb4 {[%clk 0:02:33.4]} 12... cxb4 {[%clk
0:02:43.3]} 13. Nbd2 {[%clk 0:02:30]} 13... O-O {[%clk 0:02:36.1]} 14. b3 {[%clk
0:02:25.6]} 14... Bd7 {[%clk 0:02:27.3]} 15. Bb2 {[%clk 0:02:25.3]} 15... Nc6
{[%clk 0:02:17.2]} 16. Nc4 {[%clk 0:02:23]} 16... Bg4 {[%clk 0:01:52]} 17. h3
{[%clk 0:02:07.2]} 17... Bxf3 {[%clk 0:01:50.6]} 18. Qxf3 {[%clk 0:02:08.1]}
18... Nxd4 {[%clk 0:01:50.7]} 19. Bxd4 {[%clk 0:02:07.8]} 19... exd4 {[%clk
0:01:50.6]} 20. Rad1 {[%clk 0:02:08.7]} 20... Nd7 {[%clk 0:01:16.8]} 21. Rxd4
{[%clk 0:02:02.9]} 21... Ne5 {[%clk 0:01:16.5]} 22. Qg3 {[%clk 0:01:51.4]} 22...
a5 {[%clk 0:01:09.5]} 23. Red1 {[%clk 0:01:47.7]} 23... Rad8 {[%clk 0:00:55.9]}
24. Bd3 {[%clk 0:01:42.9]} 24... Bf6 {[%clk 0:00:48.2]} 25. Rd5 {[%clk
0:01:41.3]} 25... Nxc4 {[%clk 0:00:46.5]} 26. Bxc4 {[%clk 0:01:42.2]} 26... Be5
{[%clk 0:00:45.8]} 27. f4 {[%clk 0:01:41.8]} 27... Bc3 {[%clk 0:00:42.4]} 28.
Kh1 {[%clk 0:01:35.9]} 28... Kh8 {[%clk 0:00:41.7]} 29. Qg5 {[%clk 0:01:28.3]}
29... f6 {[%clk 0:00:29.6]} 30. Qh4 {[%clk 0:01:24.4]} 30... Qe7 {[%clk
0:00:23.6]} 31. Rxa5 {[%clk 0:01:14.4]} 31... g6 {[%clk 0:00:17.3]} 32. Bd5
{[%clk 0:01:07.3]} 32... Rc8 {[%clk 0:00:15.9]} 33. Rb5 {[%clk 0:01:05.1]} 33...
Rc7 {[%clk 0:00:15.4]} 34. a5 {[%clk 0:01:04.1]} 34... Ra7 {[%clk 0:00:13.6]}
35. Qf2 {[%clk 0:00:59.3]} 35... Rc8 {[%clk 0:00:11]} 36. Qb6 {[%clk 0:00:54.4]}
36... Rcc7 {[%clk 0:00:10.9]} 37. Qb8+ {[%clk 0:00:46.3]} 37... Kg7 {[%clk
0:00:10.7]} 38. Qg8+ {[%clk 0:00:45.2]} 38... Kh6 {[%clk 0:00:10.7]} 39. Bc4
{[%clk 0:00:42.7]} 39... d5 {[%clk 0:00:02.8]} 40. Rbxd5 {[%clk 0:00:37.9]} 1-0

[Event "*** Titled Tuesday Blitz"]
[Site "Chess.com"]
[Date "2020.05.26"]
[Round "6"]
[White "GelmanAlexander"]
[Black "MFBerna"]
[Result "1-0"]
[WhiteElo "2560"]
[BlackElo "2394"]
[TimeControl "180+1"]
[EndTime "11:07:48 PDT"]
[Termination "GelmanAlexander won on time"]

1. c4 {[%clk 0:03:00.9]} 1... Nf6 {[%clk 0:02:50.3]} 2. Nf3 {[%clk 0:03:00.7]}
2... e6 {[%clk 0:02:50.5]} 3. d3 {[%clk 0:03:00.7]} 3... d5 {[%clk 0:02:49.7]}
4. Nbd2 {[%clk 0:03:01.2]} 4... Be7 {[%clk 0:02:49.6]} 5. b3 {[%clk 0:03:01]}
5... O-O {[%clk 0:02:49.7]} 6. Bb2 {[%clk 0:03:01.6]} 6... c5 {[%clk 0:02:50.3]}
7. e3 {[%clk 0:03:02]} 7... Nc6 {[%clk 0:02:50.7]} 8. a3 {[%clk 0:03:00.1]} 8...
b6 {[%clk 0:02:50.9]} 9. Rg1 {[%clk 0:02:58]} 9... Bb7 {[%clk 0:02:46.5]} 10. g4
{[%clk 0:02:58.1]} 10... d4 {[%clk 0:02:47.1]} 11. Qe2 {[%clk 0:02:48.3]} 11...
e5 {[%clk 0:02:46.8]} 12. g5 {[%clk 0:02:47.6]} 12... Ne8 {[%clk 0:02:39.2]} 13.
h4 {[%clk 0:02:41.1]} 13... Nd6 {[%clk 0:02:29]} 14. Bh3 {[%clk 0:02:37.1]}
14... Bc8 {[%clk 0:02:16.1]} 15. Bxc8 {[%clk 0:02:34.7]} 15... Qxc8 {[%clk
0:02:17]} 16. h5 {[%clk 0:02:29.3]} 16... Qe6 {[%clk 0:02:10.7]} 17. O-O-O
{[%clk 0:02:27.9]} 17... Kh8 {[%clk 0:01:43.5]} 18. Rde1 {[%clk 0:02:06.6]}
18... f5 {[%clk 0:01:21.2]} 19. gxf6 {[%clk 0:02:05.2]} 19... Qxf6 {[%clk
0:01:17.2]} 20. Kb1 {[%clk 0:01:54.6]} 20... Qh6 {[%clk 0:01:10.5]} 21. Nh2
{[%clk 0:01:14.3]} 21... dxe3 {[%clk 0:00:37]} 22. fxe3 {[%clk 0:01:13]} 22...
Nf5 {[%clk 0:00:18.4]} 23. Ne4 {[%clk 0:01:03.1]} 23... Rad8 {[%clk 0:00:12.5]}
24. Ng4 {[%clk 0:00:41.7]} 24... Qxh5 {[%clk 0:00:12.4]} 25. Rh1 {[%clk
0:00:42.1]} 25... Qg6 {[%clk 0:00:11.9]} 26. Reg1 {[%clk 0:00:40.7]} 26... Qe6
{[%clk 0:00:06.1]} 27. Qh2 {[%clk 0:00:32.6]} 27... h6 {[%clk 0:00:05.4]} 28.
Nxe5 {[%clk 0:00:25.1]} 28... Nxe5 {[%clk 0:00:06.3]} 29. Bxe5 {[%clk
0:00:25.1]} 29... Kh7 {[%clk 0:00:06.3]} 30. Bb2 {[%clk 0:00:13.9]} 30... Rxd3
{[%clk 0:00:05.6]} 31. Ng5+ {[%clk 0:00:12]} 31... Bxg5 {[%clk 0:00:04.9]} 32.
Rxg5 {[%clk 0:00:12.9]} 32... Rxb3 {[%clk 0:00:04.9]} 33. Rg2 {[%clk 0:00:08.7]}
33... Qe4+ {[%clk 0:00:03.6]} 34. Ka1 {[%clk 0:00:08.9]} 34... Rxe3 {[%clk
0:00:01.3]} 35. Rxg7+ {[%clk 0:00:09]} 1-0

[Event "*** Titled Tuesday Blitz"]
[Site "Chess.com"]
[Date "2020.05.26"]
[Round "6"]
[White "Cocaino74"]
[Black "verdest"]
[Result "0-1"]
[WhiteElo "2359"]
[BlackElo "2527"]
[TimeControl "180+1"]
[EndTime "11:07:48 PDT"]
[Termination "verdest won by resignation"]

1. e4 {[%clk 0:02:59.6]} 1... c5 {[%clk 0:02:59.4]} 2. Nf3 {[%clk 0:02:53]} 2...
Nc6 {[%clk 0:02:59]} 3. Bb5 {[%clk 0:02:53.2]} 3... d6 {[%clk 0:02:57.4]} 4. c3
{[%clk 0:02:52.5]} 4... Nf6 {[%clk 0:02:47.8]} 5. Qe2 {[%clk 0:02:52.9]} 5...
Bd7 {[%clk 0:02:45.9]} 6. d4 {[%clk 0:02:52]} 6... cxd4 {[%clk 0:02:34.3]} 7.
cxd4 {[%clk 0:02:52.9]} 7... a6 {[%clk 0:02:34.1]} 8. Ba4 {[%clk 0:02:45.2]}
8... Qa5+ {[%clk 0:02:23.5]} 9. Nc3 {[%clk 0:02:45.2]} 9... b5 {[%clk
0:02:23.2]} 10. Bb3 {[%clk 0:02:41.7]} 10... Bg4 {[%clk 0:01:55]} 11. e5 {[%clk
0:01:47.1]} 11... Nxd4 {[%clk 0:01:20.7]} 12. Qd3 {[%clk 0:01:10.4]} 12... Nxb3
{[%clk 0:01:14.1]} 13. exf6 {[%clk 0:00:55.5]} 13... Nxa1 {[%clk 0:01:07.6]} 14.
Qe4 {[%clk 0:00:26.4]} 14... Rd8 {[%clk 0:00:48]} 15. fxg7 {[%clk 0:00:14.3]}
15... Bxg7 {[%clk 0:00:45]} 16. Qxg4 {[%clk 0:00:14.9]} 16... Bxc3+ {[%clk
0:00:43.1]} 17. bxc3 {[%clk 0:00:15.5]} 17... Qxc3+ {[%clk 0:00:43.4]} 18. Bd2
{[%clk 0:00:16.2]} 18... Nc2+ {[%clk 0:00:21.4]} 19. Kd1 {[%clk 0:00:16.3]}
19... Qa1+ {[%clk 0:00:20.5]} 20. Bc1 {[%clk 0:00:16.8]} 20... Qc3 {[%clk
0:00:07.4]} 21. Qe4 {[%clk 0:00:08.5]} 21... Nb4 {[%clk 0:00:06.3]} 22. Re1
{[%clk 0:00:08.9]} 22... Qd3+ {[%clk 0:00:06.3]} 23. Qxd3 {[%clk 0:00:08]} 23...
Nxd3 {[%clk 0:00:07.2]} 24. Re4 {[%clk 0:00:07.6]} 24... Nxc1 {[%clk 0:00:07.6]}
25. Kxc1 {[%clk 0:00:08.5]} 25... e6 {[%clk 0:00:08.2]} 26. Nd4 {[%clk 0:00:07]}
26... Rc8+ {[%clk 0:00:07.7]} 27. Kd2 {[%clk 0:00:07]} 27... Kd7 {[%clk
0:00:08.3]} 28. Rf4 {[%clk 0:00:06.9]} 28... Ke7 {[%clk 0:00:08.1]} 29. Nb3
{[%clk 0:00:05.4]} 29... Rc4 {[%clk 0:00:07.2]} 30. Rf3 {[%clk 0:00:05.3]} 30...
Rhc8 {[%clk 0:00:06.5]} 31. Kd1 {[%clk 0:00:03.4]} 31... Rc2 {[%clk 0:00:06.3]}
32. a3 {[%clk 0:00:03.6]} 32... Ra2 {[%clk 0:00:06.2]} 33. Nc1 {[%clk
0:00:03.8]} 33... Ra1 {[%clk 0:00:06.1]} 0-1

[Event "*** Titled Tuesday Blitz"]
[Site "Chess.com"]
[Date "2020.05.26"]
[Round "6"]
[White "TranJMinh"]
[Black "Nor1lsk"]
[Result "1-0"]
[WhiteElo "2793"]
[BlackElo "2598"]
[TimeControl "180+1"]
[EndTime "11:07:50 PDT"]
[Termination "TranJMinh won by resignation"]

1. d4 {[%clk 0:03:00.9]} 1... g6 {[%clk 0:02:59.2]} 2. e4 {[%clk 0:03:00.2]}
2... Bg7 {[%clk 0:02:58.1]} 3. Nc3 {[%clk 0:02:58.4]} 3... c6 {[%clk 0:02:56.8]}
4. Be3 {[%clk 0:02:57.8]} 4... d5 {[%clk 0:02:55.4]} 5. e5 {[%clk 0:02:55.5]}
5... f6 {[%clk 0:02:49.9]} 6. f4 {[%clk 0:02:54.9]} 6... Nh6 {[%clk 0:02:48.9]}
7. Nf3 {[%clk 0:02:53.3]} 7... Bg4 {[%clk 0:02:47.7]} 8. Bd3 {[%clk 0:02:47.5]}
8... O-O {[%clk 0:02:45]} 9. O-O {[%clk 0:02:41.2]} 9... Nf5 {[%clk 0:02:31.7]}
10. Bf2 {[%clk 0:02:40.2]} 10... fxe5 {[%clk 0:02:29.3]} 11. dxe5 {[%clk
0:02:35.5]} 11... e6 {[%clk 0:02:23.6]} 12. h3 {[%clk 0:02:23.3]} 12... Bxf3
{[%clk 0:02:22.9]} 13. Qxf3 {[%clk 0:02:24.2]} 13... Nd7 {[%clk 0:02:17.4]} 14.
Ne2 {[%clk 0:01:43]} 14... g5 {[%clk 0:01:57.3]} 15. Qh5 {[%clk 0:01:12.2]}
15... Qe8 {[%clk 0:01:53.1]} 16. Qxg5 {[%clk 0:01:05.2]} 16... Kh8 {[%clk
0:01:48.2]} 17. c4 {[%clk 0:00:44.2]} 17... Rf7 {[%clk 0:00:35.9]} 18. cxd5
{[%clk 0:00:39.5]} 18... cxd5 {[%clk 0:00:36.8]} 19. Nd4 {[%clk 0:00:39.6]}
19... Bh6 {[%clk 0:00:32.6]} 20. Qg4 {[%clk 0:00:30.2]} 20... Rg7 {[%clk
0:00:29.9]} 21. Qf3 {[%clk 0:00:27.5]} 21... Nxd4 {[%clk 0:00:28.7]} 22. Bxd4
{[%clk 0:00:28.4]} 22... Qg8 {[%clk 0:00:25]} 23. f5 {[%clk 0:00:15]} 23... Rg3
{[%clk 0:00:21.9]} 24. Qe2 {[%clk 0:00:14.6]} 24... Qg5 {[%clk 0:00:15.7]} 25.
fxe6 {[%clk 0:00:12.1]} 25... Rg8 {[%clk 0:00:15.7]} 26. Rf2 {[%clk 0:00:12.3]}
26... Nf8 {[%clk 0:00:14.6]} 27. Bf5 {[%clk 0:00:07.4]} 27... Qe7 {[%clk
0:00:09.4]} 28. Raf1 {[%clk 0:00:06.7]} 28... Nxe6 {[%clk 0:00:09.3]} 29. Bxe6
{[%clk 0:00:05.8]} 29... Qxe6 {[%clk 0:00:10.2]} 30. Qh5 {[%clk 0:00:04.2]}
30... Bf4 {[%clk 0:00:06.5]} 31. Rxf4 {[%clk 0:00:03]} 31... Rxg2+ {[%clk
0:00:06.6]} 32. Kh1 {[%clk 0:00:03.7]} 32... R2g3 {[%clk 0:00:05.7]} 33. Rg4
{[%clk 0:00:03.4]} 33... R3xg4 {[%clk 0:00:03.7]} 34. hxg4 {[%clk 0:00:03.5]}
34... Rg5 {[%clk 0:00:04.1]} 35. Qxg5 {[%clk 0:00:02.9]} 1-0

[Event "*** Titled Tuesday Blitz"]
[Site "Chess.com"]
[Date "2020.05.26"]
[Round "6"]
[White "ChessQueen"]
[Black "kingofthenil"]
[Result "0-1"]
[WhiteElo "2617"]
[BlackElo "2466"]
[TimeControl "180+1"]
[EndTime "11:07:50 PDT"]
[Termination "kingofthenil won by resignation"]

1. e4 {[%clk 0:03:00.9]} 1... Nc6 {[%clk 0:02:55.1]} 2. Nf3 {[%clk 0:02:58.7]}
2... d5 {[%clk 0:02:56]} 3. exd5 {[%clk 0:02:58.4]} 3... Qxd5 {[%clk 0:02:56.6]}
4. Nc3 {[%clk 0:02:58.7]} 4... Qh5 {[%clk 0:02:56.5]} 5. Be2 {[%clk 0:02:39.8]}
5... Bg4 {[%clk 0:02:56.8]} 6. d3 {[%clk 0:02:32.2]} 6... O-O-O {[%clk
0:02:56.9]} 7. Be3 {[%clk 0:02:32.1]} 7... e5 {[%clk 0:02:56.8]} 8. h3 {[%clk
0:02:19.5]} 8... f5 {[%clk 0:02:40.4]} 9. Rh2 {[%clk 0:02:10]} 9... Bxf3 {[%clk
0:02:32.5]} 10. Bxf3 {[%clk 0:02:10]} 10... Qe8 {[%clk 0:02:33.4]} 11. Kf1
{[%clk 0:01:38.7]} 11... e4 {[%clk 0:02:17.7]} 12. Be2 {[%clk 0:01:38]} 12...
Bd6 {[%clk 0:02:02]} 13. g3 {[%clk 0:01:37.7]} 13... Nf6 {[%clk 0:01:59.1]} 14.
d4 {[%clk 0:01:33.9]} 14... Be5 {[%clk 0:01:51.7]} 15. Bb5 {[%clk 0:01:29.9]}
15... a6 {[%clk 0:01:38.5]} 16. Ba4 {[%clk 0:01:25.3]} 16... b5 {[%clk
0:01:36.6]} 17. Nxb5 {[%clk 0:01:25.2]} 17... axb5 {[%clk 0:01:37.5]} 18. Bxb5
{[%clk 0:01:25.7]} 18... Bxd4 {[%clk 0:01:32.4]} 19. Bxd4 {[%clk 0:01:23.8]}
19... Rxd4 {[%clk 0:01:32]} 20. Qxd4 {[%clk 0:01:22.4]} 20... Nxd4 {[%clk
0:01:29.1]} 21. Bxe8 {[%clk 0:01:22.6]} 21... Rxe8 {[%clk 0:01:30]} 22. Kg2
{[%clk 0:01:10.2]} 22... Nxc2 {[%clk 0:01:15.8]} 23. Rc1 {[%clk 0:01:08]} 23...
Nb4 {[%clk 0:01:15.7]} 24. Rhh1 {[%clk 0:01:05.1]} 24... Nxa2 {[%clk 0:01:12.5]}
25. Rc4 {[%clk 0:01:03.4]} 25... Nd5 {[%clk 0:01:11.6]} 26. Ra1 {[%clk 0:01:03]}
26... Nab4 {[%clk 0:01:11.1]} 27. Ra8+ {[%clk 0:01:00]} 27... Kd7 {[%clk
0:01:11.1]} 28. Rxe8 {[%clk 0:00:59.9]} 28... Kxe8 {[%clk 0:01:12]} 29. g4
{[%clk 0:00:59.6]} 29... g6 {[%clk 0:01:05.2]} 30. gxf5 {[%clk 0:00:58.8]} 30...
gxf5 {[%clk 0:01:06.1]} 31. Kg3 {[%clk 0:00:58.9]} 31... Kf7 {[%clk 0:01:05.7]}
32. Rc5 {[%clk 0:00:56.5]} 32... Ke6 {[%clk 0:01:03.4]} 33. b3 {[%clk 0:00:51]}
33... Nd3 {[%clk 0:01:00.5]} 34. Rb5 {[%clk 0:00:48.3]} 34... f4+ {[%clk
0:00:55.9]} 35. Kg2 {[%clk 0:00:48.2]} 35... Ke5 {[%clk 0:00:54.8]} 36. Rb8
{[%clk 0:00:47]} 36... Ne1+ {[%clk 0:00:47.6]} 37. Kf1 {[%clk 0:00:46.6]} 37...
Nf3 {[%clk 0:00:48.5]} 38. Re8+ {[%clk 0:00:45.6]} 38... Kd4 {[%clk 0:00:48.3]}
39. Rh8 {[%clk 0:00:34.7]} 39... Kd3 {[%clk 0:00:43.8]} 40. Kg2 {[%clk
0:00:31.5]} 40... Ne1+ {[%clk 0:00:37]} 41. Kf1 {[%clk 0:00:31.4]} 41... Nc2
{[%clk 0:00:36.8]} 42. Rd8 {[%clk 0:00:27.5]} 42... c6 {[%clk 0:00:35.1]} 43.
Re8 {[%clk 0:00:18.1]} 43... e3 {[%clk 0:00:34.4]} 44. f3 {[%clk 0:00:18.5]}
44... Nd4 {[%clk 0:00:28.9]} 45. Kg2 {[%clk 0:00:18.9]} 45... e2 {[%clk
0:00:27.6]} 46. Kf2 {[%clk 0:00:19.1]} 46... Ne3 {[%clk 0:00:25.3]} 0-1

[Event "*** Titled Tuesday Blitz"]
[Site "Chess.com"]
[Date "2020.05.26"]
[Round "6"]
[White "Chigorinetz"]
[Black "12teen"]
[Result "0-1"]
[WhiteElo "2517"]
[BlackElo "2738"]
[TimeControl "180+1"]
[EndTime "11:07:52 PDT"]
[Termination "12teen won by checkmate"]

1. e4 {[%clk 0:03:00.9]} 1... b6 {[%clk 0:02:57.7]} 2. Nc3 {[%clk 0:02:59.3]}
2... Bb7 {[%clk 0:02:56.3]} 3. f4 {[%clk 0:02:59.7]} 3... e6 {[%clk 0:02:54.8]}
4. Nf3 {[%clk 0:02:59.5]} 4... Nf6 {[%clk 0:02:55.3]} 5. e5 {[%clk 0:02:59.1]}
5... Nd5 {[%clk 0:02:55.5]} 6. Nxd5 {[%clk 0:02:56.2]} 6... Bxd5 {[%clk
0:02:56.4]} 7. d4 {[%clk 0:02:55.9]} 7... d6 {[%clk 0:02:56.7]} 8. Bd3 {[%clk
0:02:54.5]} 8... c5 {[%clk 0:02:54.4]} 9. c4 {[%clk 0:02:45.6]} 9... Bb7 {[%clk
0:02:52.7]} 10. Be3 {[%clk 0:02:41.7]} 10... cxd4 {[%clk 0:02:51.6]} 11. Nxd4
{[%clk 0:02:41.2]} 11... dxe5 {[%clk 0:02:46.9]} 12. fxe5 {[%clk 0:02:28.8]}
12... Bxg2 {[%clk 0:02:45]} 13. Rg1 {[%clk 0:02:21.2]} 13... Bb7 {[%clk
0:02:44.8]} 14. c5 {[%clk 0:02:11.3]} 14... bxc5 {[%clk 0:02:30.7]} 15. Nxe6
{[%clk 0:01:44.8]} 15... fxe6 {[%clk 0:02:15.7]} 16. Qh5+ {[%clk 0:01:42.4]}
16... Kd7 {[%clk 0:01:58.9]} 17. O-O-O {[%clk 0:01:35.9]} 17... Kc7 {[%clk
0:01:35.6]} 18. Qf7+ {[%clk 0:01:10.8]} 18... Qd7 {[%clk 0:01:28]} 19. Qf2
{[%clk 0:01:01.4]} 19... Bd5 {[%clk 0:01:05.7]} 20. Kb1 {[%clk 0:00:53]} 20...
Nc6 {[%clk 0:01:00.6]} 21. Bxc5 {[%clk 0:00:51.7]} 21... Bxa2+ {[%clk 0:00:45]}
22. Ka1 {[%clk 0:00:50.9]} 22... Bd5 {[%clk 0:00:44]} 23. Rc1 {[%clk 0:00:49.7]}
23... Kb7 {[%clk 0:00:19.6]} 24. Rg4 {[%clk 0:00:48.4]} 24... a5 {[%clk
0:00:14.2]} 25. Bb5 {[%clk 0:00:47.9]} 25... Qc7 {[%clk 0:00:09.9]} 26. Bd6
{[%clk 0:00:43.8]} 26... Bxd6 {[%clk 0:00:09.5]} 27. exd6 {[%clk 0:00:43.1]}
27... Qd7 {[%clk 0:00:09.1]} 28. Rf4 {[%clk 0:00:40.8]} 28... Qxd6 {[%clk
0:00:05.2]} 29. Rf7+ {[%clk 0:00:40]} 29... Ne7 {[%clk 0:00:04.5]} 30. Qh4
{[%clk 0:00:31.9]} 30... Rac8 {[%clk 0:00:03]} 31. Rxe7+ {[%clk 0:00:25.2]}
31... Kb8 {[%clk 0:00:02.6]} 32. Rd1 {[%clk 0:00:21.7]} 32... Qc5 {[%clk
0:00:02.6]} 33. Qf4+ {[%clk 0:00:18.6]} 33... Ka8 {[%clk 0:00:02.5]} 34. Ba6
{[%clk 0:00:15.6]} 34... Qxe7 {[%clk 0:00:02.4]} 35. Bxc8 {[%clk 0:00:13.8]}
35... Rxc8 {[%clk 0:00:03.3]} 36. Qe5 {[%clk 0:00:13.2]} 36... Qb7 {[%clk
0:00:03.9]} 37. h4 {[%clk 0:00:09.3]} 37... Qb3 {[%clk 0:00:04.1]} 38. Rxd5
{[%clk 0:00:02.1]} 38... Rc1# {[%clk 0:00:04.3]} 0-1

[Event "*** Titled Tuesday Blitz"]
[Site "Chess.com"]
[Date "2020.05.26"]
[Round "6"]
[White "Love_craft"]
[Black "Volodar_Murzin"]
[Result "0-1"]
[WhiteElo "2473"]
[BlackElo "2708"]
[TimeControl "180+1"]
[EndTime "11:07:54 PDT"]
[Termination "Volodar_Murzin won by resignation"]

1. d4 {[%clk 0:03:00.9]} 1... Nf6 {[%clk 0:02:57.5]} 2. c4 {[%clk 0:03:01.1]}
2... g6 {[%clk 0:02:58.2]} 3. Nc3 {[%clk 0:03:01]} 3... Bg7 {[%clk 0:02:57.6]}
4. e4 {[%clk 0:03:01.4]} 4... O-O {[%clk 0:02:57.4]} 5. Be2 {[%clk 0:03:02]}
5... d6 {[%clk 0:02:57.5]} 6. Be3 {[%clk 0:03:02.6]} 6... e5 {[%clk 0:02:57.3]}
7. d5 {[%clk 0:03:03.1]} 7... Na6 {[%clk 0:02:57.1]} 8. g4 {[%clk 0:03:01]} 8...
Nc5 {[%clk 0:02:57.1]} 9. f3 {[%clk 0:03:01.6]} 9... a5 {[%clk 0:02:56.7]} 10.
h4 {[%clk 0:03:01.1]} 10... h5 {[%clk 0:02:56.1]} 11. g5 {[%clk 0:03:01.4]}
11... Nh7 {[%clk 0:02:56.3]} 12. Qd2 {[%clk 0:02:59.4]} 12... f6 {[%clk
0:02:55.2]} 13. gxf6 {[%clk 0:02:49.8]} 13... Bxf6 {[%clk 0:02:56.1]} 14. Bf2
{[%clk 0:02:33]} 14... Be7 {[%clk 0:02:54]} 15. O-O-O {[%clk 0:02:30]} 15... Rf4
{[%clk 0:02:50.2]} 16. Bg3 {[%clk 0:02:18.6]} 16... Rxh4 {[%clk 0:02:28.9]} 17.
Bxh4 {[%clk 0:02:14.1]} 17... Bxh4 {[%clk 0:02:29.8]} 18. f4 {[%clk 0:02:12]}
18... exf4 {[%clk 0:02:29.5]} 19. Nf3 {[%clk 0:02:10.5]} 19... Bg3 {[%clk
0:02:28.6]} 20. e5 {[%clk 0:01:21.9]} 20... Ng5 {[%clk 0:02:17.9]} 21. e6 {[%clk
0:01:16.7]} 21... b6 {[%clk 0:02:06.4]} 22. Rhg1 {[%clk 0:01:10.4]} 22... Nxf3
{[%clk 0:01:59.9]} 23. Bxf3 {[%clk 0:01:09.5]} 23... Ba6 {[%clk 0:02:00.6]} 24.
Qd4 {[%clk 0:00:43.3]} 24... Qg5 {[%clk 0:01:51.7]} 25. Rde1 {[%clk 0:00:33]}
25... Re8 {[%clk 0:01:42.5]} 26. Re2 {[%clk 0:00:32.2]} 26... h4 {[%clk
0:01:02.3]} 27. b3 {[%clk 0:00:32.2]} 27... Re7 {[%clk 0:00:27.8]} 28. Kb2
{[%clk 0:00:31.2]} 28... h3 {[%clk 0:00:21]} 29. a3 {[%clk 0:00:30.8]} 29... a4
{[%clk 0:00:18.4]} 30. b4 {[%clk 0:00:22.2]} 30... Nb3 {[%clk 0:00:18.3]} 31.
Qd3 {[%clk 0:00:20.8]} 31... Qf6 {[%clk 0:00:18]} 32. Ka2 {[%clk 0:00:15.1]}
32... Kg7 {[%clk 0:00:12.2]} 33. Ne4 {[%clk 0:00:11.3]} 33... Qd4 {[%clk
0:00:12.1]} 34. Qxd4+ {[%clk 0:00:03.7]} 34... Nxd4 {[%clk 0:00:13]} 35. Reg2
{[%clk 0:00:02.4]} 35... Bxc4+ {[%clk 0:00:11.5]} 36. Kb2 {[%clk 0:00:02.7]}
36... hxg2 {[%clk 0:00:11.5]} 37. Nxg3 {[%clk 0:00:01.8]} 37... fxg3 {[%clk
0:00:12.4]} 38. Rxg2 {[%clk 0:00:02.2]} 38... Nxf3 {[%clk 0:00:12.2]} 0-1

[Event "*** Titled Tuesday Blitz"]
[Site "Chess.com"]
[Date "2020.05.26"]
[Round "6"]
[White "Tashik"]
[Black "krasavetc"]
[Result "1-0"]
[WhiteElo "2448"]
[BlackElo "2253"]
[TimeControl "180+1"]
[EndTime "11:07:54 PDT"]
[Termination "Tashik won by resignation"]

1. c4 {[%clk 0:03:00.9]} 1... Nf6 {[%clk 0:02:58.6]} 2. Nc3 {[%clk 0:02:59.8]}
2... g6 {[%clk 0:02:59]} 3. e4 {[%clk 0:02:57]} 3... d6 {[%clk 0:02:52.5]} 4. d4
{[%clk 0:02:56.9]} 4... Bg7 {[%clk 0:02:51.7]} 5. f4 {[%clk 0:02:57.4]} 5... O-O
{[%clk 0:02:51.3]} 6. Nf3 {[%clk 0:02:57.9]} 6... Bg4 {[%clk 0:02:47.1]} 7. Be2
{[%clk 0:02:57.1]} 7... Nc6 {[%clk 0:02:46.7]} 8. d5 {[%clk 0:02:55.7]} 8... Nb8
{[%clk 0:02:44.8]} 9. O-O {[%clk 0:02:53.6]} 9... Nbd7 {[%clk 0:02:43.8]} 10. h3
{[%clk 0:02:49.6]} 10... Bxf3 {[%clk 0:02:42.5]} 11. Bxf3 {[%clk 0:02:49.5]}
11... a5 {[%clk 0:02:40.7]} 12. Be3 {[%clk 0:02:44]} 12... Re8 {[%clk
0:02:12.7]} 13. Bd4 {[%clk 0:02:27.4]} 13... e5 {[%clk 0:01:26.7]} 14. dxe6
{[%clk 0:02:26.2]} 14... Rxe6 {[%clk 0:01:26.3]} 15. Qc2 {[%clk 0:02:00.7]}
15... c6 {[%clk 0:01:15.8]} 16. Rad1 {[%clk 0:01:58.8]} 16... Qc7 {[%clk
0:01:15]} 17. Qf2 {[%clk 0:01:41.3]} 17... Rae8 {[%clk 0:01:10.1]} 18. Rfe1
{[%clk 0:01:38.2]} 18... Rb8 {[%clk 0:00:32.1]} 19. Rc1 {[%clk 0:01:30.6]} 19...
Ne8 {[%clk 0:00:28.9]} 20. Be3 {[%clk 0:00:57.5]} 20... Nf8 {[%clk 0:00:19.7]}
21. Nd5 {[%clk 0:00:34]} 21... Qd8 {[%clk 0:00:15.8]} 22. Bb6 {[%clk 0:00:31.8]}
22... Qd7 {[%clk 0:00:16.7]} 23. Bg4 {[%clk 0:00:30]} 23... f5 {[%clk
0:00:10.9]} 24. exf5 {[%clk 0:00:26.5]} 24... Rxe1+ {[%clk 0:00:10.5]} 25. Rxe1
{[%clk 0:00:27.4]} 25... cxd5 {[%clk 0:00:10.8]} 26. f6 {[%clk 0:00:26.3]} 26...
Qf7 {[%clk 0:00:09.9]} 27. fxg7 {[%clk 0:00:26.5]} 27... Nxg7 {[%clk 0:00:10.8]}
28. cxd5 {[%clk 0:00:26]} 28... Qxd5 {[%clk 0:00:11.7]} 29. Bd4 {[%clk
0:00:23.6]} 29... Nf5 {[%clk 0:00:10.4]} 30. Bc3 {[%clk 0:00:23.8]} 30... Qf7
{[%clk 0:00:07.5]} 31. Rd1 {[%clk 0:00:23.1]} 31... d5 {[%clk 0:00:04.9]} 32.
Bxf5 {[%clk 0:00:23.1]} 32... Qxf5 {[%clk 0:00:04.3]} 33. Qd4 {[%clk 0:00:23.6]}
33... Ne6 {[%clk 0:00:03.7]} 34. Qh8+ {[%clk 0:00:23.3]} 34... Kf7 {[%clk
0:00:04.1]} 35. Qxb8 {[%clk 0:00:21.9]} 35... Nxf4 {[%clk 0:00:04.5]} 36. Qxb7+
{[%clk 0:00:18]} 36... Ke8 {[%clk 0:00:03.2]} 37. Qb8+ {[%clk 0:00:17.6]} 37...
Kf7 {[%clk 0:00:02.2]} 38. Qc7+ {[%clk 0:00:17.5]} 38... Ke8 {[%clk 0:00:02.9]}
39. Re1+ {[%clk 0:00:16.8]} 39... Kf8 {[%clk 0:00:02]} 1-0